bitfinex/quotes_SOLUSD_20250815
["timestamp","ask_amount","ask_price","bid_price","bid_amount"]
[1755238030439,18.78093189,197.81,197.78,25.27590711]
[1755238030639,5.11358998,197.88,197.8,13.04540944]
[1755238030826,0.06,197.88,197.83,13.04540944]
[1755238031028,0.06,197.88,197.79,0.67]
[1755238031029,0.06,197.88,197.81,0.67]
[1755238031243,0.06,197.88,197.86,13.04540944]
[1755238031447,0.06,197.86,197.81,13.71540944]
[1755238031853,0.06,197.86,197.85,13.04540944]
[1755238032350,0.06,197.86,197.82,0.67]
[1755238032534,0.06,197.86,197.83,13.04540944]
[1755238032937,0.06,197.86,197.82,13.04540944]
[1755238033253,0.06,197.86,197.83,13.71540944]
[1755238033437,0.06,197.86,197.85,13.04540944]
[1755238033636,0.06,197.86,197.84,0.67]
[1755238033834,0.06,197.86,197.85,13.04540944]
[1755238034239,0.06,197.86,197.85,13.71540944]
[1755238034749,0.06,197.86,197.85,18.76974353]
[1755238035849,0.06,197.86,197.85,13.71540944]
[1755238037048,0.06,197.86,197.85,18.76974353]
[1755238037230,0.06,197.86,197.84,13.04540944]
[1755238037636,0.06,197.86,197.85,13.71540944]
[1755238038238,0.06,197.86,197.81,0.67]
[1755238038441,0.06,197.86,197.81,13.71540944]
[1755238038636,0.06,197.86,197.82,13.04540944]
[1755238038839,0.68,197.85,197.78,25.97590711]
[1755238039036,0.06,197.86,197.81,13.04540944]
[1755238039445,0.06,197.86,197.85,13.04540944]
[1755238039841,0.06,197.86,197.85,13.71540944]
[1755238040362,0.06,197.86,197.85,18.76974353]
[1755238041065,0.06,197.87,197.85,18.76974353]
[1755238041232,0.06,197.88,197.87,39.04540944]
[1755238041652,0.06,197.88,197.87,13.04540944]
[1755238042164,0.06,197.88,197.86,0.67]
[1755238042462,0.06,197.88,197.87,18.76923265]
[1755238043154,0.06,197.88,197.86,13.04540944]
[1755238043532,0.06,197.88,197.85,0.67]
[1755238043731,0.06,197.88,197.86,13.04540944]
[1755238044365,0.06,197.88,197.85,13.04540944]
[1755238044885,0.74,197.88,197.85,13.04540944]
[1755238045064,0.74,197.88,197.84,37.6]
[1755238045065,0.74,197.88,197.84,13.04540944]
[1755238045432,0.06,197.88,197.87,13.04540944]
[1755238045742,0.06,197.88,197.87,13.71540944]
[1755238046752,0.06,197.88,197.87,18.76923265]
[1755238047166,0.06,197.88,197.87,13.04540944]
[1755238049890,0.74,197.88,197.84,13.04540944]
[1755238050243,0.74,197.88,197.83,13.04540944]
[1755238050481,0.74,197.88,197.83,13.71540944]
[1755238050645,0.06,197.88,197.8,38.19]
[1755238050850,0.06,197.88,197.83,13.04540944]
[1755238051051,0.06,197.88,197.82,13.04540944]
[1755238051350,0.06,197.88,197.81,13.72540944]
[1755238051975,5.11368012,197.88,197.81,13.72540944]
[1755238052181,13.04540944,197.87,197.81,0.68]
[1755238052355,18.85908956,197.88,197.81,13.04540944]
[1755238052551,13.74540944,197.87,197.8,13.04540944]
[1755238052773,5.05407864,197.86,197.79,13.04540944]
[1755238053573,0.7,197.85,197.78,25.30590711]
[1755238053870,0.7,197.85,197.79,13.04540944]
[1755238054169,5.05407864,197.86,197.81,13.04540944]
[1755238054373,0.7,197.85,197.8,13.04540944]
[1755238054572,0.7,197.84,197.78,30.36199884]
[1755238054747,0.7,197.84,197.79,13.04540944]
[1755238054945,0.06,197.88,197.82,13.04540944]
[1755238055149,0.06,197.88,197.87,13.04540944]
[1755238055981,0.06,197.88,197.86,13.04540944]
[1755238056665,0.06,197.88,197.87,13.04540944]
[1755238057252,0.06,197.88,197.84,13.04540944]
[1755238057588,0.7,197.87,197.82,13.04540944]
[1755238057883,0.7,197.87,197.81,13.04540944]
[1755238058184,0.06,197.88,197.86,13.04540944]
[1755238058475,0.06,197.88,197.85,13.04540944]
[1755238058679,0.06,197.88,197.83,13.04540944]
[1755238058873,0.06,197.88,197.84,13.04540944]
[1755238059358,0.06,197.88,197.87,13.04540944]
[1755238059865,0.06,197.88,197.87,13.72540944]
[1755238061058,0.06,197.88,197.87,18.77923265]
[1755238064379,0.06,197.88,197.87,18.09923265]
[1755238064581,0.06,197.88,197.84,0.68]
[1755238064762,0.06,197.88,197.85,13.04540944]
[1755238065073,0.06,197.88,197.86,13.04540944]
[1755238065457,0.06,197.88,197.87,13.72540944]
[1755238066584,0.06,197.88,197.86,18.09939927]
[1755238066762,0.06,197.88,197.85,18.09969232]
[1755238067086,0.06,197.88,197.86,13.04540944]
[1755238067977,0.06,197.88,197.84,13.04540944]
[1755238068166,0.06,197.88,197.85,13.04540944]
[1755238068366,0.06,197.88,197.86,13.04540944]
[1755238069155,0.06,197.88,197.84,13.04540944]
[1755238069563,0.76,197.88,197.84,13.04540944]
[1755238069763,0.06,197.88,197.84,13.04540944]
[1755238069972,0.06,197.88,197.86,13.04540944]
[1755238070485,0.06,197.88,197.86,13.72540944]
[1755238070654,0.06,197.88,197.87,13.72540944]
[1755238071566,0.06,197.88,197.87,18.77923265]
[1755238071885,0.06,197.88,197.87,18.09923265]
[1755238072263,0.06,197.88,197.86,5.05404394]
[1755238072460,0.06,197.88,197.85,18.09973822]
[1755238072657,0.06,197.88,197.86,13.04540944]
[1755238072870,0.06,197.88,197.87,13.04540944]
[1755238073069,0.06,197.88,197.86,0.68]
[1755238073288,0.06,197.88,197.87,13.04540944]
[1755238073464,0.06,197.88,197.84,18.09995882]
[1755238073862,0.06,197.88,197.84,18.77995882]
[1755238074071,0.06,197.88,197.85,13.04540944]
[1755238074366,0.06,197.88,197.84,18.77995882]
[1755238075255,0.06,197.88,197.84,18.09995882]
[1755238075462,0.06,197.88,197.85,13.04540944]
[1755238076158,0.06,197.88,197.86,13.72540944]
[1755238076575,0.06,197.88,197.82,0.03]
[1755238076780,0.06,197.88,197.86,13.04540944]
[1755238077567,0.06,197.88,197.85,5.05433409]
[1755238077766,0.06,197.88,197.85,5.73433409]
[1755238077987,0.06,197.88,197.86,13.04540944]
[1755238078867,0.06,197.88,197.85,5.05433409]
[1755238079064,0.06,197.88,197.86,13.04540944]
[1755238079592,0.06,197.88,197.86,18.09946505]
[1755238080593,0.06,197.88,197.87,13.04540944]
[1755238081593,0.06,197.88,197.86,18.09946505]
[1755238081801,0.06,197.88,197.87,13.04540944]
[1755238082499,0.06,197.88,197.87,13.75540944]
[1755238082875,0.06,197.88,197.87,13.04540944]
[1755238083797,0.06,197.88,197.85,13.07540944]
[1755238084174,0.06,197.88,197.85,0.74]
[1755238084385,0.06,197.88,197.87,13.04540944]
[1755238084697,0.06,197.88,197.87,13.75540944]
[1755238085185,0.73,197.88,197.85,0.03]
[1755238085377,0.06,197.88,197.87,13.04540944]
[1755238085578,0.06,197.88,197.87,13.75540944]
[1755238085784,0.06,197.88,197.87,13.04540944]
[1755238085979,0.06,197.88,197.85,5.08424161]
[1755238085980,0.06,197.88,197.85,0.74]
[1755238086372,0.06,197.88,197.86,13.04540944]
[1755238086599,0.06,197.88,197.85,13.78540944]
[1755238086806,0.06,197.88,197.85,8.78760232]
[1755238087802,0.06,197.88,197.85,8.07760232]
[1755238088001,0.67,197.87,197.85,0.03]
[1755238088204,0.67,197.86,197.85,0.03]
[1755238088395,8.71760232,197.86,197.85,0.03]
[1755238088586,12.11954612,197.86,197.85,0.03]
[1755238088783,41.4719438,197.86,197.85,0.03]
[1755238088988,49.51954612,197.86,197.85,0.03]
[1755238089680,54.57362476,197.86,197.85,0.03]
[1755238089992,58.35317263,197.86,197.85,0.03]
[1755238090790,46.52602244,197.86,197.85,0.03]
[1755238091672,40.8019438,197.86,197.85,0.03]
[1755238092107,37.4,197.86,197.85,0.03]
[1755238092484,131.96,197.88,197.85,13.77808122]
[1755238092485,0.06,197.88,197.85,13.77808122]
[1755238092697,0.06,197.88,197.87,13.03808122]
[1755238093084,0.06,197.88,197.87,13.74808122]
[1755238095006,0.06,197.88,197.87,13.03808122]
[1755238095302,0.06,197.88,197.87,13.74808122]
[1755238095608,0.06,197.88,197.85,0.03]
[1755238095785,5.05407864,197.86,197.85,0.03]
[1755238095977,5.72407864,197.86,197.85,0.03]
[1755238097186,9.12245121,197.86,197.85,0.03]
[1755238097502,5.05407864,197.86,197.85,0.03]
[1755238098799,5.05382321,197.87,197.85,0.03]
[1755238099000,0.06,197.88,197.86,0.71]
[1755238099305,0.06,197.88,197.87,13.74808122]
[1755238100082,0.06,197.88,197.87,0.71]
[1755238100294,0.06,197.88,197.87,13.74808122]
[1755238100913,0.06,197.88,197.87,18.80190443]
[1755238101095,0.06,197.88,197.87,5.76382321]
[1755238101295,0.06,197.88,197.87,18.80190443]
[1755238106186,0.06,197.88,197.87,20.82573543]
[1755238108094,0.06,197.88,197.87,18.80190443]
[1755238111092,0.06,197.89,197.87,69.72536797]
[1755238111321,0.06,197.9,197.88,26.78616244]
[1755238111535,0.06,197.9,197.89,39.03808122]
[1755238111818,0.06,197.9,197.89,13.03808122]
[1755238112431,0.06,197.9,197.89,13.74808122]
[1755238112811,0.06,197.9,197.89,18.80139366]
[1755238114795,0.06,197.9,197.89,18.09139366]
[1755238116526,0.06,197.9,197.89,5.05331244]
[1755238116703,0.06,197.9,197.89,18.09139366]
[1755238117219,0.06,197.9,197.89,13.03808122]
[1755238118005,0.06,197.9,197.88,42.433546]
[1755238118206,0.06,197.9,197.87,0.74]
[1755238118207,0.76,197.9,197.87,0.03]
[1755238118407,0.7,197.89,197.87,13.06808122]
[1755238118628,0.7,197.89,197.87,8.07658433]
[1755238118934,0.06,197.9,197.87,0.03]
[1755238118935,0.7,197.88,197.87,0.03]
[1755238121416,0.06,197.9,197.87,13.06195597]
[1755238121729,0.06,197.9,197.89,13.03195597]
[1755238122219,0.76,197.9,197.88,13.03195597]
[1755238123004,0.76,197.9,197.87,0.03]
[1755238123005,0.7,197.89,197.87,0.03]
[1755238123420,0.7,197.88,197.87,0.03]
[1755238124915,5.75356781,197.88,197.87,0.03]
[1755238125114,0.7,197.88,197.87,0.03]
[1755238125442,13.52195597,197.88,197.87,0.03]
[1755238125630,50.90195597,197.88,197.87,0.03]
[1755238125937,37.87,197.88,197.87,0.03]
[1755238126345,50.90195597,197.88,197.87,0.03]
[1755238127025,55.95552378,197.88,197.87,0.03]
[1755238127838,59.34798899,197.88,197.87,0.03]
[1755238128639,42.92356781,197.88,197.87,0.03]
[1755238128945,46.31528711,197.88,197.87,0.03]
[1755238129538,46.31498073,197.88,197.87,0.03]
[1755238130116,42.92356781,197.88,197.87,0.03]
[1755238131237,131.9,197.89,197.87,0.03]
[1755238131739,37.36,197.88,197.87,0.03]
[1755238132739,38.06,197.88,197.87,0.03]
[1755238132944,43.11356781,197.88,197.87,0.03]
[1755238133531,56.14552378,197.88,197.87,0.03]
[1755238134062,43.11356781,197.88,197.87,0.03]
[1755238135933,59.53771243,197.88,197.87,0.03]
[1755238137624,59.53771243,197.88,197.87,1e-08]
[1755238137827,63.3067747,197.88,197.87,1e-08]
[1755238138123,63.3067747,197.88,197.85,0.03]
[1755238138124,63.3067747,197.88,197.85,1e-08]
[1755238138446,13.03195597,197.86,197.85,1e-08]
[1755238138748,57.55320689,197.86,197.85,1e-08]
[1755238138938,63.30728553,197.86,197.85,1e-08]
[1755238139144,63.30728553,197.86,197.79,1e-08]
[1755238139145,10.0,197.85,197.79,1e-08]
[1755238139340,13.03195597,197.8,197.79,1e-08]
[1755238139527,53.78127055,197.8,197.79,1e-08]
[1755238139727,17.12127055,197.8,197.79,1e-08]
[1755238139924,17.12127055,197.8,197.76,0.03]
[1755238139925,54.48127055,197.8,197.76,0.03]
[1755238140125,13.03195597,197.78,197.76,0.03]
[1755238140324,53.78127055,197.77,197.72,0.03]
[1755238140539,13.03195597,197.75,197.72,0.03]
[1755238140852,50.39195597,197.75,197.72,0.03]
[1755238141050,56.09884598,197.75,197.72,0.03]
[1755238143433,43.06689001,197.75,197.72,0.03]
[1755238143639,56.09884598,197.75,197.72,0.03]
[1755238144248,145.58195597,197.74,197.72,0.03]
[1755238144425,13.68195597,197.74,197.72,0.03]
[1755238144624,51.04195597,197.73,197.72,1e-08]
[1755238145145,51.04195597,197.73,197.65,0.2]
[1755238145146,61.04195597,197.73,197.65,0.2]
[1755238145337,13.03195597,197.68,197.65,0.2]
[1755238145646,50.39195597,197.68,197.65,0.2]
[1755238145847,55.94063666,197.68,197.65,0.2]
[1755238147843,18.58089258,197.67,197.65,0.2]
[1755238148270,18.58089258,197.67,197.64,0.2]
[1755238148473,13.03195597,197.65,197.64,0.2]
[1755238148758,10.0,197.64,197.62,1e-08]
[1755238149063,10.0,197.64,197.43,12.6623307]
[1755238149064,60.41195597,197.63,197.51,0.66]
[1755238149229,13.03195597,197.56,197.51,0.66]
[1755238149430,50.41195597,197.56,197.51,0.66]
[1755238149629,50.90195597,197.56,197.51,0.66]
[1755238150043,55.96370936,197.56,197.49,0.66]
[1755238150238,55.96370936,197.56,197.39,37.99050626]
[1755238150436,68.61809283,197.56,197.49,0.66]
[1755238150632,68.61809283,197.56,197.45,13.03195597]
[1755238150633,13.03195597,197.51,197.45,0.66]
[1755238150848,50.41195597,197.5,197.46,0.66]
[1755238151049,37.38,197.49,197.46,0.66]
[1755238151255,18.36613686,197.56,197.47,0.66]
[1755238151455,13.03195597,197.52,197.47,0.66]
[1755238151656,37.38,197.51,197.47,13.69195597]
[1755238151854,13.03195597,197.49,197.44,0.66]
[1755238152067,37.38,197.48,197.44,0.66]
[1755238152253,0.65,197.57,197.47,13.03195597]
[1755238152439,13.03195597,197.55,197.48,13.03195597]
[1755238152775,13.03195597,197.55,197.49,0.66]
[1755238152944,10.0,197.62,197.54,13.03195597]
[1755238152945,18.09266046,197.61,197.54,13.03195597]
[1755238153268,13.03195597,197.56,197.5,0.66]
[1755238153563,13.03195597,197.53,197.47,0.66]
[1755238153763,13.03195597,197.51,197.47,0.66]
[1755238153967,18.09569595,197.49,197.44,0.66]
[1755238154170,18.09569595,197.49,197.4,0.66]
[1755238154171,13.03195597,197.46,197.4,0.66]
[1755238154351,5.06373998,197.49,197.4,0.66]
[1755238154352,50.41195597,197.45,197.4,0.66]
[1755238154553,37.38,197.44,197.41,0.66]
[1755238154868,37.38,197.44,197.42,0.66]
[1755238155057,37.38,197.44,197.38,13.03195597]
[1755238155058,5.06252214,197.53,197.43,13.69195597]
[1755238155258,37.38,197.52,197.49,13.03195597]
[1755238155475,37.38,197.51,197.5,0.66]
[1755238155845,37.38,197.51,197.47,13.69195597]
[1755238156042,37.38,197.51,197.49,13.03195597]
[1755238156254,8.61490967,197.59,197.5,13.69195597]
[1755238156255,37.38,197.55,197.5,13.69195597]
[1755238156572,37.38,197.54,197.51,13.69195597]
[1755238156785,37.38,197.54,197.39,0.50661127]
[1755238156786,37.38,197.53,197.49,0.66]
[1755238156959,13.03195597,197.5,197.46,0.66]
[1755238157168,13.03195597,197.47,197.4,13.03195597]
[1755238157351,50.43195597,197.46,197.4,13.69195597]
[1755238158050,37.4,197.46,197.42,13.03195597]
[1755238158351,37.4,197.46,197.43,0.66]
[1755238158557,5.71274296,197.53,197.43,0.66]
[1755238158766,50.43195597,197.52,197.43,0.66]
[1755238158971,18.09419178,197.55,197.48,13.03195597]
[1755238159173,37.4,197.54,197.47,13.69195597]
[1755238159476,13.03195597,197.53,197.47,13.69195597]
[1755238160064,18.09448048,197.53,197.47,13.69195597]
[1755238160262,18.09448048,197.53,197.47,0.66]
[1755238160462,18.09448048,197.53,197.39,26.0]
[1755238160463,13.03195597,197.48,197.34,0.66]
[1755238160666,13.03195597,197.44,197.38,13.03195597]
[1755238160896,37.74,197.43,197.38,0.66]
[1755238161054,37.74,197.43,197.39,0.66]
[1755238161376,37.11,197.52,197.42,13.03195597]
[1755238161568,13.03195597,197.49,197.43,0.66]
[1755238162075,36.46,197.52,197.47,13.03195597]
[1755238162249,37.78,197.51,197.48,0.66]
[1755238162647,37.78,197.51,197.47,13.03195597]
[1755238162850,37.78,197.51,197.49,0.66]
[1755238163478,13.68195597,197.5,197.42,0.66]
[1755238163682,13.03195597,197.48,197.42,0.66]
[1755238163877,37.78,197.47,197.42,0.66]
[1755238164083,37.78,197.47,197.43,0.66]
[1755238164388,50.81195597,197.47,197.44,0.66]
[1755238164676,50.81195597,197.48,197.41,18.09744614]
[1755238164877,50.81195597,197.47,197.42,0.66]
[1755238165059,37.82,197.46,197.42,0.66]
[1755238165254,0.65,197.51,197.42,39.69195597]
[1755238165457,13.03195597,197.57,197.5,13.03195597]
[1755238165660,8.02490967,197.59,197.52,13.03195597]
[1755238165867,37.86,197.58,197.54,13.03195597]
[1755238166090,37.86,197.58,197.55,13.69195597]
[1755238166268,37.86,197.58,197.54,13.03195597]
[1755238166467,50.89195597,197.58,197.53,0.66]
[1755238166665,13.03195597,197.56,197.5,0.66]
[1755238166886,0.65,197.57,197.5,0.66]
[1755238167071,13.03195597,197.56,197.5,0.66]
[1755238167377,13.03195597,197.55,197.48,18.09574429]
[1755238167579,13.03195597,197.55,197.47,26.66]
[1755238167580,13.03195597,197.53,197.47,0.66]
[1755238167878,13.03195597,197.52,197.47,0.66]
[1755238168182,37.9,197.54,197.44,13.69195597]
[1755238168183,13.03195597,197.5,197.44,13.69195597]
[1755238168359,50.91195597,197.49,197.44,0.66]
[1755238168559,37.88,197.52,197.48,13.03195597]
[1755238168889,37.92,197.53,197.51,13.03195597]
[1755238169059,37.92,197.54,197.52,0.66]
[1755238169377,37.92,197.54,197.5,13.03195597]
[1755238169580,37.92,197.54,197.49,13.69195597]
[1755238170284,37.92,197.54,197.51,13.03195597]
[1755238170482,37.92,197.54,197.52,0.66]
[1755238171081,8.56490967,197.59,197.52,13.69195597]
[1755238171282,8.56490967,197.59,197.49,5.06346231]
[1755238171283,37.88,197.58,197.54,13.03195597]
[1755238171659,8.02490967,197.59,197.56,13.03195597]
[1755238171970,8.02490967,197.59,197.55,13.03195597]
[1755238172166,8.02490967,197.59,197.45,0.50645733]
[1755238172167,8.02490967,197.59,197.58,13.03195597]
[1755238172385,0.06,197.59,197.58,13.74195597]
[1755238172971,0.06,197.59,197.57,13.03195597]
[1755238173579,0.06,197.59,197.56,13.74195597]
[1755238173883,0.06,197.59,197.56,13.03195597]
[1755238175270,0.06,197.59,197.54,13.74195597]
[1755238175783,0.76,197.59,197.51,5.77282576]
[1755238176176,18.8529941,197.59,197.53,13.03195597]
[1755238176493,18.8529941,197.59,197.52,13.03195597]
[1755238176661,0.06,197.59,197.54,13.03195597]
[1755238176865,0.06,197.59,197.54,0.71]
[1755238177073,0.06,197.59,197.55,0.71]
[1755238177278,0.06,197.59,197.56,13.03195597]
[1755238177875,0.06,197.59,197.51,5.06290566]
[1755238178081,0.06,197.59,197.53,13.74195597]
[1755238178272,5.12099928,197.59,197.54,13.03195597]
[1755238178467,0.76,197.59,197.54,13.03195597]
[1755238178673,0.06,197.59,197.54,13.74195597]
[1755238178877,0.06,197.59,197.55,0.71]
[1755238179082,0.06,197.59,197.56,13.74195597]
[1755238179279,0.06,197.59,197.57,13.03195597]
[1755238179480,0.06,197.59,197.57,13.74195597]
[1755238179798,0.06,197.59,197.58,13.74195597]
[1755238180687,0.06,197.59,197.58,18.80319698]
[1755238181493,0.06,197.59,197.58,13.03195597]
[1755238181691,0.06,197.59,197.55,13.03195597]
[1755238182104,41.22694443,197.59,197.53,13.03195597]
[1755238182269,22.16439483,197.58,197.51,18.80495018]
[1755238182470,3.37118725,197.57,197.51,18.80495018]
[1755238182778,18.0933511,197.58,197.52,13.03195597]
[1755238182981,3.37118623,197.57,197.52,13.03195597]
[1755238183205,18.0933511,197.58,197.52,13.03195597]
[1755238183491,13.03195597,197.55,197.49,0.03]
[1755238183713,41.1550839,197.54,197.49,0.03]
[1755238183871,3.3750839,197.53,197.49,13.06195597]
[1755238184066,37.78,197.54,197.49,13.06195597]
[1755238184273,3.37613692,197.53,197.49,0.03]
[1755238184573,3.37821649,197.52,197.49,0.03]
[1755238184785,3.37821649,197.51,197.49,0.03]
[1755238185007,0.7,197.53,197.49,0.03]
[1755238185191,3.37846703,197.52,197.49,0.03]
[1755238185377,5.76257207,197.53,197.49,0.03]
[1755238185694,3.37878369,197.52,197.49,0.03]
[1755238185895,5.76257207,197.53,197.49,0.03]
[1755238186100,3.37878369,197.52,197.49,0.03]
[1755238186301,3.37878369,197.51,197.49,0.03]
[1755238186586,42.8423068,197.54,197.49,0.03]
[1755238186793,3.3806429,197.53,197.49,0.03]
[1755238186997,3.3806429,197.52,197.49,0.03]
[1755238187177,3.3806429,197.51,197.49,0.03]
[1755238187375,8.44393403,197.5,197.49,0.03]
[1755238187705,50.62529578,197.5,197.49,0.03]
[1755238188594,63.65725175,197.5,197.49,0.03]
[1755238189381,44.86200465,197.5,197.49,0.03]
[1755238189704,41.1006429,197.5,197.49,0.03]
[1755238190206,37.72,197.5,197.49,13.06195597]
[1755238190385,41.10896158,197.5,197.49,13.06195597]
[1755238190902,37.68,197.5,197.49,13.77195597]
[1755238191072,37.68,197.5,197.49,18.83550349]
[1755238191896,37.66,197.52,197.49,18.83550349]
[1755238192075,37.66,197.52,197.51,13.03195597]
[1755238192498,41.05179732,197.52,197.5,13.03195597]
[1755238192699,3.39186325,197.51,197.49,0.03]
[1755238193004,3.39186325,197.5,197.49,0.03]
[1755238194186,38.34,197.52,197.49,0.03]
[1755238194499,3.39352987,197.51,197.49,0.03]
[1755238194710,37.64,197.52,197.49,0.03]
[1755238194898,3.39352885,197.51,197.49,0.03]
[1755238195095,37.64,197.52,197.49,0.03]
[1755238195294,3.39377723,197.51,197.49,0.03]
[1755238195598,9.15688213,197.51,197.49,0.03]
[1755238195805,0.7,197.5,197.49,0.03]
[1755238195993,5.0631049,197.51,197.49,0.03]
[1755238195994,8.45661527,197.51,197.49,0.03]
[1755238196179,5.0631049,197.51,197.49,0.03]
[1755238196583,42.70282375,197.52,197.49,0.03]
[1755238197006,3.39365511,197.51,197.49,0.03]
[1755238197209,38.34,197.52,197.49,0.03]
[1755238197515,43.40279547,197.52,197.49,0.03]
[1755238197692,0.7,197.51,197.49,0.03]
[1755238198206,55.73475144,197.52,197.49,0.03]
[1755238198410,0.7,197.5,197.49,0.03]
[1755238199200,3.39414666,197.51,197.49,0.03]
[1755238199611,3.39414666,197.51,197.49,13.06195597]
[1755238199791,0.06,197.55,197.5,13.74195597]
[1755238199792,37.52,197.52,197.5,13.74195597]
[1755238199987,37.52,197.52,197.49,0.03]
[1755238200193,13.03195597,197.5,197.49,0.03]
[1755238200411,16.4266258,197.5,197.49,0.03]
[1755238200592,17.1266258,197.5,197.49,0.03]
[1755238200990,17.1266258,197.5,197.49,1e-08]
[1755238201191,20.8996627,197.5,197.47,1e-08]
[1755238201390,13.03195597,197.48,197.45,0.03]
[1755238201593,18.09627279,197.46,197.45,0.03]
[1755238201887,59.03094262,197.46,197.45,0.03]
[1755238202188,56.29627279,197.46,197.45,0.03]
[1755238202410,59.69042258,197.46,197.45,0.03]
[1755238202800,21.49042258,197.46,197.45,0.03]
[1755238203002,59.03042258,197.46,197.45,0.03]
[1755238203309,55.63627279,197.46,197.45,0.03]
[1755238203514,56.29627279,197.46,197.45,0.03]
[1755238204127,59.68900404,197.46,197.45,0.03]
[1755238204494,56.29627279,197.46,197.45,0.03]
[1755238204790,86.29627279,197.46,197.45,0.03]
[1755238205094,89.68787289,197.46,197.45,0.03]
[1755238205299,86.29627279,197.46,197.45,0.03]
[1755238205715,89.68695165,197.46,197.45,0.03]
[1755238206008,86.29627279,197.46,197.45,0.03]
[1755238206218,89.68700894,197.46,197.45,0.03]
[1755238207917,86.29627279,197.46,197.45,0.03]
[1755238208713,89.68505031,197.46,197.45,0.03]
[1755238209021,86.29627279,197.46,197.45,0.03]
[1755238209212,89.68505031,197.46,197.45,0.03]
[1755238209407,89.68505031,197.46,197.43,0.03]
[1755238209408,89.68427263,197.46,197.43,0.03]
[1755238209622,13.03195597,197.44,197.38,0.03]
[1755238209821,5.06585612,197.4,197.38,0.03]
[1755238209996,37.48,197.39,197.38,0.03]
[1755238211109,42.54611277,197.39,197.38,0.03]
[1755238211424,55.57806874,197.39,197.38,0.03]
[1755238211722,56.23806874,197.39,197.38,0.03]
[1755238213196,56.23806874,197.39,197.38,1e-08]
[1755238213197,59.6222314,197.39,197.38,1e-08]
[1755238214494,18.09806874,197.39,197.38,1e-08]
[1755238214694,85.57806874,197.39,197.38,1e-08]
[1755238215516,35.06611277,197.39,197.38,1e-08]
[1755238215821,85.57806874,197.39,197.38,1e-08]
[1755238216327,42.54611277,197.39,197.38,1e-08]
[1755238216911,55.57806874,197.39,197.38,1e-08]
[1755238217721,42.54611277,197.39,197.38,1e-08]
[1755238218099,55.57806874,197.39,197.38,1e-08]
[1755238218707,56.23806874,197.39,197.38,1e-08]
[1755238218912,59.61481316,197.39,197.38,1e-08]
[1755238219116,59.61481316,197.39,197.36,0.03]
[1755238219117,89.61481316,197.39,197.36,1e-08]
[1755238219303,13.03195597,197.37,197.36,1e-08]
[1755238219505,58.95532652,197.37,197.36,1e-08]
[1755238219800,56.2385821,197.37,197.36,1e-08]
[1755238220121,42.54662613,197.37,197.36,0.67000001]
[1755238220298,55.5785821,197.37,197.36,1e-08]
[1755238220502,56.1085821,197.37,197.36,1e-08]
[1755238221313,59.4842798,197.37,197.36,1e-08]
[1755238222629,86.1085821,197.37,197.36,1e-08]
[1755238222823,59.48395743,197.37,197.36,1e-08]
[1755238224610,63.23568172,197.37,197.36,1e-08]
[1755238225041,114.26733368,197.37,197.29,0.1]
[1755238225209,13.03195597,197.3,197.29,0.1]
[1755238225410,50.51195597,197.3,197.29,0.1]
[1755238225610,37.48,197.3,197.29,0.77]
[1755238225806,73.06632212,197.37,197.32,0.03]
[1755238225807,47.73319146,197.37,197.32,0.03]
[1755238226016,37.48,197.36,197.33,0.67]
[1755238226325,67.48,197.35,197.34,0.67]